bitfinex-derivatives/quotes_SOLF0:USTF0_20250221
["timestamp","ask_amount","ask_price","bid_price","bid_amount"]
[1740125059670,5.6605,176.63,176.58,5.6617]
[1740125059877,1.8334,176.65,176.56,15.53184597]
[1740125060477,0.87399586,176.66,176.56,15.53184597]
[1740125060675,0.87399586,176.66,176.61,5.6608]
[1740125060876,0.87399586,176.66,176.59,0.04292613]
[1740125060877,0.03849151,176.63,176.59,0.04292613]
[1740125061679,0.03849151,176.63,176.59,5.70422613]
[1740125062279,0.03849151,176.63,176.59,0.04292613]
[1740125063176,0.03849151,176.63,176.59,5.70432613]
[1740125063380,0.03849151,176.63,176.59,0.04292613]
[1740125063681,0.03849151,176.63,176.6,5.6612]
[1740125063880,0.03849151,176.63,176.59,0.04292613]
[1740125065082,0.03849151,176.63,176.6,5.661]
[1740125065274,0.03849151,176.63,176.59,15.5747721]
[1740125065479,0.03849151,176.63,176.62,5.6606]
[1740125066181,0.03849151,176.63,176.6,5.661]
[1740125067082,0.03849151,176.63,176.59,21.2362721]
[1740125067278,0.03849151,176.63,176.59,15.5747721]
[1740125067474,5.6612,176.6,176.59,0.04292613]
[1740125068370,21.19304597,176.6,176.59,2.613e-05]
[1740125070084,5.6612,176.6,176.59,2.613e-05]
[1740125070579,1.7937,176.62,176.59,2.613e-05]
[1740125070780,5.6609,176.61,176.59,2.613e-05]
[1740125070979,7.53849151,176.63,176.59,2.613e-05]
[1740125071181,0.03849151,176.63,176.59,2.613e-05]
[1740125074185,5.6612,176.6,176.59,2.613e-05]
[1740125081894,5.6609,176.61,176.59,2.613e-05]
[1740125082093,0.03849151,176.63,176.59,2.613e-05]
[1740125083395,5.6612,176.6,176.59,2.613e-05]
[1740125088095,5.664,176.52,176.5,1.769]
[1740125088300,26.69332281,176.61,176.5,1.769]
[1740125088499,0.93958176,176.6,176.5,1.769]
[1740125088703,5.6647,176.5,176.45,9.23]
[1740125088897,5.6647,176.5,176.45,10.9899]
[1740125089101,24.93972281,176.58,176.45,5.324]
[1740125089302,0.0382681,176.49,176.46,0.04351691]
[1740125089500,0.93970768,176.57,176.45,5.324]
[1740125089704,5.6641,176.51,176.5,0.03707569]
[1740125090405,0.03649564,176.53,176.5,0.03707569]
[1740125090602,5.6638,176.52,176.5,0.03707569]
[1740125091000,0.03649564,176.53,176.5,0.03707569]
[1740125091797,5.6624,176.57,176.52,5.6638]
[1740125092000,15.60231028,176.59,176.48,15.60231028]
[1740125092406,5.6619,176.58,176.48,15.60231028]
[1740125092909,0.04190379,176.55,176.52,5.6635]
[1740125093408,0.04190379,176.55,176.52,5.6637]
[1740125094309,0.04190379,176.55,176.51,0.04346271]
[1740125094609,0.04190379,176.55,176.51,5.70746271]
[1740125095311,0.04190379,176.55,176.51,0.04346271]
[1740125095506,0.04190379,176.55,176.52,5.6635]
[1740125097113,0.04190379,176.55,176.51,0.04346271]
[1740125097308,0.04190379,176.55,176.53,5.6634]
[1740125097614,0.04190379,176.55,176.51,15.64577299]
[1740125097914,0.04190379,176.55,176.54,5.6631]
[1740125098113,0.04190379,176.55,176.52,5.4618]
[1740125098813,0.04190379,176.55,176.53,5.6632]
[1740125099916,0.04190379,176.55,176.52,5.4618]
[1740125100116,0.04190379,176.55,176.52,11.1256]
[1740125101212,5.70470379,176.55,176.52,11.1256]
[1740125101914,0.04190379,176.55,176.52,5.4618]
[1740125102117,5.6635,176.53,176.52,1.783]
[1740125102517,0.04190379,176.55,176.52,1.783]
[1740125103116,0.04190379,176.55,176.52,7.4465]
[1740125103311,0.04190379,176.55,176.52,1.783]
[1740125103618,7.48,176.61,176.54,15.60231028]
[1740125104119,5.6618,176.59,176.55,5.6626]
[1740125104717,0.03840675,176.59,176.56,5.6624]
[1740125105418,0.03840675,176.59,176.55,0.04154676]
[1740125105723,0.03840675,176.59,176.58,5.6619]
[1740125106919,0.03840675,176.59,176.57,21.26451028]
[1740125108117,0.03840675,176.59,176.57,15.60231028]
[1740125109324,0.03840675,176.59,176.57,21.26451028]
[1740125111722,0.03840675,176.59,176.58,5.6619]
[1740125112923,14.3205991,176.65,176.57,15.60231028]
[1740125113620,5.66,176.64,176.6,5.6609]
[1740125113817,14.3205991,176.65,176.57,15.60231028]
[1740125114020,15.60231028,176.77,176.63,15.60231028]
[1740125114228,5.6583,176.7,176.66,15.60231028]
[1740125114926,5.6583,176.7,176.66,21.26131028]
[1740125115327,0.04050869,176.7,176.66,15.63800318]
[1740125116726,5.69860869,176.7,176.66,15.63800318]
[1740125117122,5.69860869,176.7,176.66,0.0356929]
[1740125118123,0.04050869,176.7,176.67,5.659]
[1740125118628,5.69850869,176.7,176.66,15.63800318]
[1740125119526,0.04050869,176.7,176.66,15.63800318]
[1740125119930,0.04050869,176.7,176.66,21.29700318]
[1740125120430,5.6586,176.69,176.66,0.0356929]
[1740125121823,0.04050869,176.7,176.66,0.0356929]
[1740125122032,5.69850869,176.7,176.66,0.0356929]
[1740125122329,0.04050869,176.7,176.66,0.0356929]
[1740125123331,0.04050869,176.7,176.67,5.6587]
[1740125123525,0.04050869,176.7,176.66,0.0356929]
[1740125123732,0.04050869,176.7,176.66,15.63800318]
[1740125123926,0.04050869,176.7,176.69,5.6583]
[1740125124128,8.69e-06,176.7,176.69,5.6583]
[1740125124327,8.69e-06,176.7,176.69,21.26061028]
[1740125125926,8.69e-06,176.7,176.69,15.60231028]
[1740125126132,8.69e-06,176.7,176.68,1.756]
[1740125126529,8.69e-06,176.7,176.68,7.4146]
[1740125126727,8.69e-06,176.7,176.68,1.756]
[1740125127834,8.69e-06,176.7,176.68,7.4145]
[1740125128231,8.69e-06,176.7,176.68,1.756]
[1740125129233,8.69e-06,176.7,176.68,7.4144]
[1740125129527,8.69e-06,176.7,176.68,1.756]
[1740125129938,8.69e-06,176.7,176.68,7.4144]
[1740125130233,8.69e-06,176.7,176.68,1.756]
[1740125130532,8.69e-06,176.7,176.68,7.4146]
[1740125130937,8.69e-06,176.7,176.68,1.756]
[1740125132235,8.69e-06,176.7,176.69,5.6583]
[1740125133031,8.69e-06,176.7,176.69,21.26061028]
[1740125133434,148.28,176.8,176.74,5.6564]
[1740125133636,148.28,176.8,176.72,15.60231028]
[1740125134630,148.28,176.8,176.74,0.04140453]
[1740125135338,5.6557,176.78,176.74,0.04140453]
[1740125136040,5.6552,176.79,176.74,5.69810453]
[1740125136239,148.28,176.8,176.74,0.04140453]
[1740125136840,5.6561,176.77,176.74,0.04140453]
[1740125137339,148.28,176.8,176.74,0.04140453]
[1740125137536,5.6554,176.79,176.74,5.69810453]
[1740125137737,148.28,176.8,176.74,0.04140453]
[1740125138236,5.6556,176.78,176.74,0.04140453]
[1740125138840,148.28,176.8,176.74,0.04140453]
[1740125140739,9.95619325,176.79,176.75,5.6562]
[1740125141140,5.6555,176.78,176.74,5.69790453]
[1740125141342,9.95619325,176.79,176.74,0.04140453]
[1740125141743,5.6555,176.78,176.74,5.69790453]
[1740125142541,5.6559,176.77,176.74,5.69790453]
[1740125143647,5.6559,176.77,176.74,0.04140453]
[1740125144444,9.95619325,176.79,176.74,0.04140453]
[1740125145047,5.656,176.77,176.74,0.04140453]
[1740125146042,158.23619325,176.8,176.74,0.04140453]
[1740125146547,5.6557,176.78,176.74,0.04140453]
[1740125147147,5.6557,176.78,176.74,5.69810453]
[1740125147547,5.6557,176.78,176.74,0.04140453]
[1740125148546,5.6557,176.78,176.75,5.6564]
[1740125149052,5.6557,176.78,176.74,15.65419778]
[1740125149449,5.6557,176.78,176.74,9.99759778]
[1740125150451,1.8004,176.81,176.76,9.95619325]
[1740125151146,9.95619325,176.8,176.74,9.99759778]
[1740125152448,5.6551,176.79,176.75,5.6562]
[1740125155055,5.6556,176.78,176.75,5.6562]
[1740125155255,9.95619325,176.8,176.74,9.99759778]
[1740125155755,9.95619325,176.78,176.74,0.04140453]
[1740125156549,5.6564,176.75,176.74,0.04140453]
[1740125158157,9.95619325,176.76,176.67,31.1568627]
[1740125158355,9.95619325,176.71,176.67,31.1568627]
[1740125158556,5.6585,176.69,176.67,31.1568627]
[1740125158758,9.95619325,176.71,176.64,7.77771539]
[1740125159051,5.6584,176.69,176.64,17.73390864]
[1740125159352,0.0381171,176.69,176.66,0.03692639]
[1740125160355,5.6965171,176.69,176.66,0.03692639]
[1740125160659,0.0381171,176.69,176.66,0.03692639]
[1740125161059,0.0381171,176.69,176.66,9.99311964]
[1740125161357,0.0381171,176.69,176.68,9.95619325]
[1740125161559,0.0381171,176.69,176.68,15.61489325]
[1740125164056,0.0381171,176.69,176.68,9.95619325]
[1740125164256,0.0381171,176.69,176.66,9.99311964]
[1740125164453,5.6587,176.68,176.66,9.99311964]
[1740125164855,9.95619325,176.67,176.66,0.03692639]
[1740125165061,9.95619325,176.67,176.61,31.1568627]
[1740125165358,9.95619325,176.68,176.62,9.95619325]
[1740125165760,5.6596,176.66,176.62,9.95619325]
[1740125166164,5.6596,176.66,176.62,9.99695664]
[1740125166364,5.6596,176.66,176.62,15.65755664]
[1740125166661,9.95619325,176.68,176.62,9.99695664]
[1740125166861,5.6596,176.65,176.62,9.99695664]
[1740125167361,0.03876731,176.65,176.62,15.65735664]
[1740125167657,0.03876731,176.65,176.62,9.99695664]
[1740125168061,0.03876731,176.65,176.62,0.04076339]
[1740125168569,5.6602,176.64,176.62,0.04076339]
[1740125168961,0.03876731,176.65,176.62,0.04076339]
[1740125169362,9.99496056,176.65,176.58,9.95619325]
[1740125169664,5.6615,176.59,176.56,9.95619325]
[1740125170060,5.662,176.58,176.56,9.95619325]
[1740125170770,5.69729936,176.59,176.56,9.95619325]
[1740125170968,0.03569936,176.59,176.58,9.95619325]
[1740125171665,0.03569936,176.59,176.58,15.61809325]
[1740125174066,5.6593,176.66,176.58,9.95619325]
[1740125174270,1.8355,176.67,176.64,9.95619325]
[1740125174671,7.4945,176.67,176.61,15.57360554]
[1740125175066,7.4945,176.67,176.63,5.66]
[1740125175262,0.03799406,176.66,176.63,5.66]
[1740125175668,0.03799406,176.66,176.65,5.6596]
[1740125177275,9.406e-05,176.66,176.65,5.6596]
[1740125177475,1.7006,176.74,176.64,15.57360554]
[1740125177773,1.7006,176.74,176.67,15.57360554]
[1740125177964,148.14,176.75,176.7,5.6577]
[1740125178369,148.14,176.75,176.67,15.57360554]
[1740125178570,0.03635365,176.73,176.69,5.69723709]
[1740125178770,0.03635365,176.73,176.69,0.03893709]
[1740125179171,0.03635365,176.73,176.7,5.6577]
[1740125179674,0.03635365,176.73,176.71,5.6576]
[1740125180174,0.03635365,176.73,176.7,15.57360554]
[1740125182376,0.03635365,176.73,176.71,5.6577]
[1740125182577,0.03635365,176.73,176.7,15.57360554]
[1740125182976,0.03635365,176.73,176.7,21.23140554]
[1740125183174,0.03635365,176.73,176.7,15.57360554]
[1740125183575,0.03635365,176.73,176.72,5.6574]
[1740125196686,0.03635365,176.73,176.72,15.6127082]
[1740125196979,5.365e-05,176.73,176.72,15.6127082]
[1740125197179,9.9553082,176.82,176.72,9.9553082]
[1740125197377,5.294,176.84,176.77,5.6557]
[1740125197677,9.9553082,176.82,176.77,5.6557]
[1740125197883,9.9553082,176.82,176.76,15.6113082]
[1740125198084,5.6551,176.8,176.76,15.6113082]
[1740125198486,5.6788614,176.8,176.76,15.64716401]
[1740125199286,5.6788614,176.8,176.76,9.99116401]
[1740125199582,5.6788614,176.8,176.77,5.6558]
[1740125199786,0.0237614,176.8,176.76,9.99116401]
[1740125199977,5.6788614,176.8,176.76,15.64706401]
[1740125201084,0.0237614,176.8,176.76,15.64706401]
[1740125201585,0.0237614,176.8,176.77,5.6558]
[1740125202381,5.6788614,176.8,176.77,5.6558]
[1740125203081,0.0237614,176.8,176.77,5.6558]
[1740125204888,5.6786614,176.8,176.77,5.6558]
[1740125205590,5.6552,176.79,176.76,9.99116401]
[1740125206091,5.6788614,176.8,176.76,15.64696401]
[1740125207085,0.0237614,176.8,176.79,5.6551]
[1740125207387,0.0237614,176.8,176.78,9.9553082]
[1740125208890,0.0237614,176.8,176.79,5.6551]
[1740125216289,6.14e-05,176.8,176.79,5.6551]
[1740125216490,196.91791136,177.01,176.8,34.06]
[1740125216684,196.91791136,177.01,176.98,9.9553082]
[1740125216890,196.91791136,177.01,177.0,9.9553082]
[1740125218692,196.91791136,177.01,176.99,15.5472473]
[1740125219490,5.6467,177.06,176.99,15.5472473]
[1740125220591,5.6475,177.03,176.99,0.03801734]
[1740125220796,15.50922996,177.05,176.95,15.50922996]
[1740125221791,15.50922996,177.05,176.92,15.50922996]
[1740125221991,0.03756678,177.02,176.98,0.0395512]
[1740125222191,5.6487,177.0,176.92,21.16012996]
[1740125222498,15.50922996,177.05,176.92,15.50922996]
[1740125222792,0.93699327,177.04,176.92,21.16022996]
[1740125222995,15.50922996,177.05,176.92,15.50922996]
[1740125223495,0.04235187,177.0,176.97,0.03859875]
[1740125225097,5.6488,176.99,176.97,0.03859875]
[1740125225492,0.04235187,177.0,176.97,0.03859875]
[1740125226794,5.6489,176.99,176.97,0.03859875]
[1740125227690,5.6491,176.98,176.97,0.03859875]
[1740125229203,0.04235187,177.0,176.97,0.03859875]
[1740125229501,0.04235187,177.0,176.98,15.50922996]
[1740125230699,0.04235187,177.0,176.99,5.6487]
[1740125231195,0.04235187,177.0,176.98,15.50922996]
[1740125231400,0.04235187,177.0,176.99,5.6487]
[1740125237400,7.5,177.14,176.98,17.19372996]
[1740125237606,0.93661077,177.13,177.07,15.50922996]
[1740125237806,1.6724,177.14,177.07,15.50922996]
[1740125237999,1.6724,177.14,177.09,5.6455]
[1740125238198,5.644,177.14,177.07,15.50922996]
[1740125238405,0.03521667,177.13,177.1,15.54632318]
[1740125239212,0.93615524,177.19,177.1,15.54632318]
[1740125239417,13.82319761,177.21,177.1,15.50922996]
[1740125240116,5.644,177.14,177.1,15.50922996]
[1740125240515,5.644,177.14,177.1,15.54522568]
[1740125240712,5.6444,177.13,177.1,15.54522568]
[1740125240915,15.50922996,177.15,177.04,15.50922996]
[1740125241119,15.50922996,177.12,177.01,15.50922996]
[1740125241416,23.06922996,177.12,177.01,15.50922996]
[1740125242211,7.56,177.12,177.05,0.04305305]
[1740125242417,5.6825499,177.08,177.05,0.04305305]
[1740125243317,0.0366499,177.08,177.07,15.50922996]
[1740125243708,0.0366499,177.08,177.07,21.15542996]
[1740125243911,0.0366499,177.08,177.07,15.50922996]
[1740125246417,5.6443,177.13,177.07,15.50922996]
[1740125247019,5.6446,177.12,177.08,5.6458]
[1740125247720,5.6446,177.12,177.08,5.68564449]
[1740125248123,15.50922996,177.15,176.99,3.5645]
[1740125248317,15.50922996,177.12,177.02,15.50922996]
[1740125248518,3.525,177.11,176.99,50.23059266]
[1740125248712,5.6474,177.04,176.99,50.23059266]
[1740125248918,12.8664,177.11,176.99,46.66609266]
[1740125249223,0.03805468,177.07,177.03,5.251e-05]
[1740125249418,15.50922996,177.06,177.03,5.251e-05]
[1740125249620,5.6471,177.04,177.03,5.251e-05]
[1740125251424,5.6469,177.05,177.03,5.251e-05]
[1740125252023,0.03805468,177.07,177.03,5.251e-05]
[1740125252224,5.6471,177.04,177.03,5.251e-05]
[1740125252426,0.03805468,177.07,177.03,5.251e-05]
[1740125252821,5.6466,177.06,177.03,5.251e-05]
[1740125253723,0.03805468,177.07,177.03,5.251e-05]
[1740125254025,5.468e-05,177.07,177.03,5.251e-05]
[1740125254225,5.468e-05,177.07,177.04,5.6469]
[1740125254829,5.468e-05,177.07,177.03,5.251e-05]
[1740125258227,5.6465,177.06,177.03,5.251e-05]
[1740125258427,5.468e-05,177.07,177.03,5.251e-05]
[1740125259928,5.6471,177.04,177.03,5.251e-05]
[1740125263430,7.56005468,177.07,177.03,5.251e-05]
[1740125264034,5.6471,177.04,177.03,5.251e-05]
[1740125277741,5.6497,176.96,176.89,1.676]
[1740125278139,5.3756,177.03,176.92,5.651]
[1740125278344,5.6496,176.97,176.92,5.651]
[1740125278546,5.6496,176.97,176.89,1.676]
[1740125278945,0.03595965,176.95,176.91,0.03701152]
[1740125280251,0.03595965,176.95,176.92,5.6509]
[1740125280946,0.03595965,176.95,176.91,0.03701152]
[1740125281146,0.03595965,176.95,176.91,5.68821152]
[1740125281953,0.03595965,176.95,176.91,0.03701152]
[1740125282649,0.03595965,176.95,176.92,5.6507]
[1740125282849,0.03595965,176.95,176.91,0.03701152]
[1740125284455,0.03595965,176.95,176.92,5.651]
[1740125285059,0.03595965,176.95,176.94,5.6503]
[1740125286153,0.03595965,176.95,176.93,5.6506]
[1740125287160,0.03595965,176.95,176.94,5.6503]
[1740125288548,3.5455,177.03,176.93,24.8283801]
[1740125289558,5.6483,177.01,176.96,5.6497]
[1740125289759,5.6483,177.01,176.96,5.68568197]
[1740125289960,3.5455,177.03,176.96,0.03598197]
[1740125290259,5.6484,177.0,176.96,0.03598197]
[1740125290656,3.5455,177.03,176.96,0.03598197]
[1740125290859,5.6483,177.01,176.96,5.68548197]
[1740125291249,5.6475,177.03,176.99,5.6486]
[1740125291454,147.92,177.06,176.96,24.86436207]
[1740125291957,147.92,177.06,176.97,1.7255]
[1740125292156,147.92,177.06,176.99,5.6484]
[1740125292351,147.92,177.06,177.0,0.0407422]
[1740125292757,5.6474,177.04,177.0,0.0407422]
[1740125293259,5.6475,177.03,177.0,0.0407422]
[1740125293462,147.92,177.06,177.0,0.0407422]
[1740125295862,5.6481,177.01,177.0,0.0407422]
[1740125296664,147.92,177.06,177.0,0.0407422]
[1740125300365,5.6472,177.04,177.0,5.6890422]
[1740125300868,147.92,177.06,177.0,5.6890422]
[1740125301058,147.92,177.06,177.0,0.0407422]
[1740125301265,147.92,177.06,177.03,5.6472]
[1740125301561,147.92,177.06,177.01,15.50876608]
[1740125301766,7.5,177.1,177.04,5.6469]
[1740125301767,5.6458,177.09,177.04,5.6469]
[1740125302073,3.6387,177.14,177.04,5.6469]
[1740125302074,200.5,177.13,177.04,15.50876608]
[1740125302270,200.5,177.13,177.05,0.03888611]
[1740125302767,5.6454,177.1,177.05,5.68568611]
[1740125303173,200.5,177.13,177.05,0.03888611]
[1740125304570,193.0,177.13,177.05,0.03888611]
[1740125304970,5.6446,177.12,177.06,5.6463]
[1740125305168,1.8445,177.14,177.06,5.6463]
[1740125306067,1.8445,177.14,177.05,0.03888611]
[1740125306470,5.6459,177.08,177.05,0.03888611]
[1740125306673,1.8445,177.14,177.05,0.03888611]
[1740125307268,5.6454,177.1,177.05,5.68568611]
[1740125307871,1.8445,177.14,177.05,0.03888611]
[1740125308773,1.8445,177.14,177.05,15.54765219]
[1740125309069,5.6452,177.11,177.06,5.6463]
[1740125309276,1.8445,177.14,177.06,5.6463]
[1740125309772,5.6453,177.1,177.06,5.6463]
[1740125310075,1.8445,177.14,177.05,0.03888611]
[1740125310273,5.6457,177.09,177.05,0.03888611]
[1740125311174,1.8445,177.14,177.05,0.03888611]
[1740125311776,5.6458,177.09,177.05,0.03888611]
[1740125311976,1.8445,177.14,177.05,0.03888611]
[1740125312177,5.6465,177.06,177.05,0.03888611]
[1740125312677,15.50876608,177.06,176.99,1.716]
[1740125312976,15.50876608,177.06,176.96,15.50876608]
[1740125313368,5.6484,177.01,176.96,21.15836608]
[1740125313769,5.6484,177.01,176.96,15.50876608]
[1740125314073,0.03637679,177.0,176.97,0.04199443]
[1740125314673,0.03637679,177.0,176.99,5.6487]
[1740125315774,0.03637679,177.0,176.97,0.04199443]
[1740125316568,0.03637679,177.0,176.97,5.69129443]
[1740125316871,0.03637679,177.0,176.97,0.04199443]
[1740125317682,0.03637679,177.0,176.98,5.649]
[1740125318082,0.03637679,177.0,176.99,5.6487]
[1740125318784,0.03637679,177.0,176.97,0.04199443]
[1740125319286,5.68507679,177.0,176.97,0.04199443]
[1740125319681,0.03637679,177.0,176.97,0.04199443]
[1740125319887,5.6491,176.98,176.97,0.04199443]
[1740125320686,15.54514287,177.0,176.88,7.77771539]
[1740125320987,15.50876608,176.96,176.88,7.77771539]
[1740125321388,15.50876608,176.96,176.89,5.6519]
[1740125321891,0.04042786,176.94,176.91,0.03822687]
[1740125322092,0.04042786,176.94,176.92,5.6508]
[1740125322289,0.04042786,176.94,176.91,0.03822687]
[1740125324194,0.04042786,176.94,176.92,5.651]
[1740125325796,340.9,177.02,176.93,15.50876608]
[1740125325995,147.9,177.02,176.96,15.50876608]
[1740125326889,0.03692368,177.01,176.97,0.0428298]
[1740125327494,0.03692368,177.01,176.99,5.6485]
[1740125328692,0.03692368,177.01,176.99,5.6487]
[1740125329496,0.03692368,177.01,177.0,5.6484]
[1740125334099,5.665,177.2,176.98,15.50876608]
[1740125334100,13.82319761,177.21,176.98,15.50876608]
[1740125334299,1.6727,177.14,177.03,15.50876608]
[1740125335198,5.6446,177.12,177.07,0.03663567]
[1740125335795,1.6727,177.14,177.07,0.03663567]
[1740125336001,15.50876608,177.13,177.07,0.03663567]
[1740125336402,5.6455,177.1,177.07,0.03663567]
[1740125338201,15.50876608,177.13,177.07,0.03663567]
[1740125339298,5.6449,177.11,177.07,0.03663567]
[1740125339502,15.50876608,177.13,177.07,0.03663567]
[1740125340596,15.50876608,177.1,177.0,21.15716608]
[1740125341098,15.50876608,177.1,177.0,15.50876608]
[1740125341303,15.50876608,177.1,176.98,15.50876608]
[1740125341498,1.7664,177.09,176.98,15.50876608]
[1740125341700,5.6471,177.05,176.98,15.50876608]
[1740125341906,5.68753787,177.05,177.02,0.03741425]
[1740125342104,0.04043787,177.05,177.02,0.03741425]
[1740125342407,5.6471,177.04,177.02,0.03741425]
[1740125344601,5.68723787,177.05,177.02,0.03741425]
[1740125345802,5.6472,177.04,177.02,0.03741425]
[1740125347509,5.6475,177.03,177.02,0.03741425]
[1740125347907,5.6493,176.98,176.93,5.6506]
[1740125348109,15.50876608,177.04,176.92,15.50876608]
[1740125348307,23.04876608,177.04,176.92,15.50876608]
[1740125348812,23.04876608,177.04,176.92,21.15946608]
[1740125349110,0.04214933,177.0,176.96,0.03735585]
[1740125349311,5.6493,176.98,176.96,0.03735585]
[1740125350009,5.6488,176.99,176.96,0.03735585]
[1740125350407,0.04214933,177.0,176.96,0.03735585]
[1740125351501,5.69064933,177.0,176.96,0.03735585]
[1740125351699,0.04214933,177.0,176.96,0.03735585]
[1740125353108,5.6493,176.98,176.96,0.03735585]
[1740125353307,0.04214933,177.0,176.96,0.03735585]
[1740125353913,5.6493,176.98,176.96,0.03735585]
[1740125355215,5.6488,176.99,176.96,0.03735585]
[1740125358619,0.04214933,177.0,176.96,0.03735585]
[1740125359317,5.6493,176.98,176.96,0.03735585]
[1740125359618,0.04214933,177.0,176.96,0.03735585]
[1740125360016,5.6494,176.97,176.96,0.03735585]
[1740125360717,0.04214933,177.0,176.96,0.03735585]
[1740125362720,5.649,176.99,176.96,0.03735585]
[1740125362916,0.04214933,177.0,176.96,0.03735585]
[1740125364119,5.6488,176.99,176.96,0.03735585]
[1740125364623,0.04214933,177.0,176.96,0.03735585]
[1740125364922,5.6488,176.99,176.96,0.03735585]
[1740125365217,0.04214933,177.0,176.96,0.03735585]
[1740125365419,5.649,176.99,176.96,0.03735585]
[1740125369726,0.04214933,177.0,176.96,0.03735585]
[1740125369926,5.649,176.99,176.96,0.03735585]
[1740125370529,0.04214933,177.0,176.96,0.03735585]
[1740125371820,5.69084933,177.0,176.96,0.03735585]
[1740125372026,5.69084933,177.0,176.96,5.68705585]
[1740125372630,0.04214933,177.0,176.96,0.03735585]
[1740125372823,5.6488,176.99,176.96,0.03735585]
[1740125373029,9.93204308,176.97,176.96,0.03735585]
[1740125373230,15.58144308,176.97,176.96,0.03735585]
[1740125374627,5.6494,176.97,176.96,0.03735585]
[1740125376541,5.6494,176.97,176.96,5.585e-05]
[1740125376737,9.93204308,176.98,176.86,32.9249627]
[1740125376939,9.93204308,176.91,176.86,31.1568627]
[1740125377641,15.58364308,176.91,176.86,41.08890578]
[1740125378041,0.04184771,176.9,176.87,0.03869383]
[1740125379238,0.04184771,176.9,176.88,9.93204308]
[1740125379445,0.04184771,176.9,176.89,5.6519]
[1740125379643,5.6496,176.97,176.88,9.93204308]
[1740125379844,5.6496,176.97,176.92,9.93204308]
[1740125380248,9.93204308,176.98,176.92,9.93204308]
[1740125380742,0.04267743,176.97,176.93,0.03728573]
[1740125381048,5.69207743,176.97,176.93,0.03728573]
[1740125381448,0.04267743,176.97,176.93,0.03728573]
[1740125381642,0.04267743,176.97,176.94,9.93204308]
[1740125382039,0.04267743,176.97,176.95,5.65]
[1740125382248,0.04267743,176.97,176.94,9.93204308]
[1740125382746,0.04267743,176.97,176.93,0.03728573]
[1740125384646,0.04267743,176.97,176.94,5.6501]
[1740125384847,0.04267743,176.97,176.93,0.03728573]
[1740125385447,0.04267743,176.97,176.95,5.6499]
[1740125387851,0.04267743,176.97,176.94,5.6502]
[1740125389053,0.04267743,176.97,176.93,0.03728573]
[1740125389751,0.04267743,176.97,176.94,5.6503]
[1740125392458,0.04267743,176.97,176.95,5.65]
[1740125394857,0.04267743,176.97,176.93,0.03728573]
[1740125395955,0.04267743,176.97,176.96,5.6497]
[1740125396257,0.04267743,176.97,176.93,0.03728573]
[1740125396258,15.52240975,177.04,176.95,15.52240975]
[1740125396456,5.6473,177.04,176.95,15.52240975]
[1740125396655,5.6473,177.04,176.96,3.5732]
[1740125397158,0.03646938,177.02,177.0,5.6482]
[1740125397660,0.03646938,177.02,176.98,0.04211283]
[1740125398657,5.68446938,177.02,176.98,5.69111283]
[1740125398856,0.03646938,177.02,176.98,0.04211283]
[1740125399357,15.52240975,177.01,176.98,0.04211283]
[1740125399749,5.6487,176.99,176.98,0.04211283]
[1740125400959,5.6487,176.99,176.98,1.283e-05]
[1740125401154,15.52240975,177.01,176.91,3.6099]
[1740125401360,15.52240975,176.97,176.9,7.77771539]
[1740125401766,15.52240975,176.94,176.9,7.77771539]
[1740125401961,15.52240975,176.94,176.86,3.6099]
[1740125402360,5.6514,176.91,176.88,0.04175761]
[1740125403164,5.6516,176.91,176.88,0.04175761]
[1740125403560,0.03698942,176.92,176.88,0.04175761]
[1740125404863,5.6517,176.9,176.88,0.04175761]
[1740125405161,0.03698942,176.92,176.88,0.04175761]
[1740125405558,5.68798942,176.92,176.88,0.04175761]
[1740125405964,0.03698942,176.92,176.88,0.04175761]
[1740125406165,15.52240975,176.91,176.88,0.04175761]
[1740125406664,15.52240975,176.91,176.81,1.8207]
[1740125406859,15.52240975,176.87,176.8,11.25791539]
[1740125407254,15.52240975,176.87,176.8,3.4802]
[1740125407866,0.03984895,176.85,176.82,0.04253606]
[1740125409069,0.03984895,176.85,176.82,5.69643606]
[1740125409667,0.03984895,176.85,176.82,0.04253606]
[1740125409868,5.69314895,176.85,176.82,0.04253606]
[1740125410868,0.03984895,176.85,176.82,0.04253606]
[1740125412266,5.69314895,176.85,176.82,0.04253606]
[1740125412468,0.03984895,176.85,176.82,0.04253606]
[1740125412659,5.6536,176.84,176.82,0.04253606]
[1740125413970,0.03984895,176.85,176.82,0.04253606]
[1740125414171,5.69304895,176.85,176.82,0.04253606]
[1740125414867,5.69304895,176.85,176.82,5.69673606]
[1740125415371,0.03984895,176.85,176.82,5.69673606]
[1740125416970,5.69314895,176.85,176.82,5.69673606]